bitfinex/quotes_SOLUSD_20250617
["timestamp","ask_amount","ask_price","bid_price","bid_amount"]
[1750131131175,27.14,153.56,153.53,8.82047516]
[1750131132377,33.65229152,153.56,153.53,8.82047516]
[1750131133290,33.65229152,153.56,153.54,8.82047516]
[1750131133670,42.47276668,153.56,153.52,8.82047516]
[1750131133875,8.82047516,153.54,153.5,8.82047516]
[1750131134103,27.1,153.53,153.52,8.82047516]
[1750131134299,27.1,153.53,153.51,8.82047516]
[1750131134608,33.61344588,153.53,153.5,8.82047516]
[1750131135787,33.61344588,153.53,153.51,8.82047516]
[1750131136386,27.1,153.53,153.52,8.82047516]
[1750131136586,25.16172371,153.57,153.52,8.82047516]
[1750131136794,27.28216157,153.56,153.48,32.51546736]
[1750131137008,8.82047516,153.55,153.51,8.82047516]
[1750131137522,36.10263673,153.56,153.52,8.82047516]
[1750131138514,6.02,153.58,153.55,8.82047516]
[1750131138712,27.28216157,153.57,153.55,8.82047516]
[1750131138909,27.14,153.57,153.55,8.82047516]
[1750131139079,6.02,153.58,153.56,8.82047516]
[1750131139285,6.02,153.58,153.52,26.0]
[1750131139286,6.02,153.58,153.57,8.82047516]
[1750131139681,12.53126448,153.58,153.55,8.82047516]
[1750131139885,35.96047516,153.57,153.53,8.82047516]
[1750131140205,18.79181043,153.56,153.49,1.6486]
[1750131140508,15.3337156,153.54,153.47,12.61422372]
[1750131140719,27.14,153.53,153.5,8.82047516]
[1750131141081,27.14,153.53,153.51,8.82047516]
[1750131141292,27.14,153.53,153.5,8.82047516]
[1750131141691,27.14,153.53,153.51,8.82047516]
[1750131142097,33.65347961,153.53,153.51,8.82047516]
[1750131142904,33.65347961,153.53,153.5,8.82047516]
[1750131144302,27.12,153.53,153.52,8.82047516]
[1750131145121,25.16133734,153.57,153.52,8.82047516]
[1750131145323,27.1,153.56,153.52,8.82047516]
[1750131145894,6.51253663,153.55,153.53,8.82047516]
[1750131147327,6.51253663,153.55,153.52,8.82047516]
[1750131147522,33.61223163,153.56,153.53,8.82047516]
[1750131148224,33.61223163,153.56,153.52,8.82047516]
[1750131148225,27.1,153.55,153.52,8.82047516]
[1750131148728,27.1,153.55,153.51,8.82047516]
[1750131149025,27.1,153.55,153.52,8.82047516]
[1750131149324,6.51296079,153.54,153.52,8.82047516]
[1750131149714,27.08,153.53,153.52,8.82047516]
[1750131153214,6.5113761,153.58,153.52,15.33428443]
[1750131153529,27.06,153.57,153.55,8.82047516]
[1750131154213,12.4913761,153.58,153.55,8.82047516]
[1750131154214,27.06,153.56,153.55,8.82047516]
[1750131154521,27.06,153.56,153.54,8.82047516]
[1750131154712,33.57211252,153.56,153.53,8.82047516]
[1750131155227,42.39258768,153.56,153.52,8.82047516]
[1750131156628,33.57211252,153.56,153.53,8.82047516]
[1750131156810,33.57211252,153.56,153.52,8.82047516]
[1750131157202,33.57211252,153.56,153.53,8.82047516]
[1750131157402,33.57211252,153.56,153.54,8.82047516]
[1750131157620,27.06,153.56,153.54,8.82047516]
[1750131157820,5.98,153.58,153.55,8.82047516]
[1750131158127,27.04,153.57,153.56,8.82047516]
[1750131158829,31.85272683,153.57,153.55,8.82047516]
[1750131159020,27.04,153.57,153.55,8.82047516]
[1750131159405,4.81272756,153.56,153.52,8.15601486]
[1750131159705,0.14216157,153.56,153.5,26.0]
[1750131159927,8.82047516,153.52,153.47,14.91907516]
[1750131160129,8.82047516,153.52,153.44,8.14678046]
[1750131160130,41.84047516,153.51,153.46,8.82047516]
[1750131160426,8.82047516,153.5,153.46,8.82047516]
[1750131160724,15.33516122,153.5,153.45,8.82047516]
[1750131160927,6.51468606,153.5,153.46,8.82047516]
[1750131161330,48.35479828,153.51,153.47,8.82047516]
[1750131161910,4.8293647,153.5,153.47,8.82047516]
[1750131162109,48.35479828,153.51,153.47,8.82047516]
[1750131162424,4.82936544,153.5,153.47,8.82047516]
[1750131162734,6.51467063,153.5,153.46,8.82047516]
[1750131164017,4.8379446,153.49,153.46,8.82047516]
[1750131164328,6.51467063,153.5,153.46,8.82047516]
[1750131164528,4.8379446,153.49,153.46,8.82047516]
[1750131164831,6.51467063,153.5,153.46,8.82047516]
[1750131165025,4.8379446,153.49,153.47,8.82047516]
[1750131165338,6.51467063,153.5,153.47,8.82047516]
[1750131165511,4.8379446,153.49,153.47,8.82047516]
[1750131165811,6.51467063,153.5,153.47,8.82047516]
[1750131166009,4.84555109,153.49,153.47,8.82047516]
[1750131166210,6.51467063,153.5,153.47,8.82047516]
[1750131166531,4.84555183,153.49,153.47,8.82047516]
[1750131166705,6.51467063,153.5,153.47,8.82047516]
[1750131166901,4.84555109,153.49,153.44,8.1466125]
[1750131167130,6.51467063,153.5,153.46,8.82047516]
[1750131167307,4.84555183,153.49,153.46,8.82047516]
[1750131167502,31.877818,153.48,153.46,8.82047516]
[1750131167817,4.857818,153.47,153.46,8.82047516]
[1750131168018,4.85781874,153.47,153.46,8.82047516]
[1750131170331,27.02,153.48,153.46,8.82047516]
[1750131170538,27.02,153.5,153.47,8.82047516]
[1750131170738,4.86046408,153.49,153.47,8.82047516]
[1750131170920,4.86046408,153.48,153.47,8.82047516]
[1750131171422,5.98,153.51,153.47,8.82047516]
[1750131171614,4.8626142,153.5,153.45,15.33725587]
[1750131171815,4.8626142,153.49,153.45,15.33725587]
[1750131172025,5.98,153.51,153.45,15.33725587]
[1750131172225,4.86261494,153.5,153.45,15.33725587]
[1750131172418,4.86270317,153.49,153.45,6.51678071]
[1750131172633,5.98,153.51,153.45,6.51678071]
[1750131172833,5.98,153.51,153.48,8.82047516]
[1750131173206,5.98,153.51,153.45,6.51678071]
[1750131173514,12.4943054,153.51,153.47,8.82047516]
[1750131173717,5.98,153.51,153.46,26.0]
[1750131173917,5.98,153.51,153.48,8.82047516]
[1750131174144,5.98,153.51,153.46,26.0]
[1750131174314,5.98,153.51,153.48,8.82047516]
[1750131174647,21.31475609,153.51,153.47,8.82047516]
[1750131174836,21.31475609,153.51,153.46,26.0]
[1750131174837,26.17951912,153.51,153.44,8.14675355]
[1750131175036,26.17951912,153.51,153.47,8.82047516]
[1750131175338,21.31475609,153.51,153.47,8.82047516]
[1750131176129,12.49428093,153.51,153.47,8.82047516]
[1750131176325,5.98,153.51,153.48,8.82047516]
[1750131176639,33.0,153.51,153.48,8.82047516]
[1750131177120,39.51427694,153.51,153.47,8.82047516]
[1750131177838,48.3347521,153.51,153.46,8.82047516]
[1750131178831,45.40023519,153.51,153.46,5.88595825]
[1750131179022,45.40023519,153.51,153.45,6.51665224]
[1750131179226,45.40023519,153.51,153.47,5.88595825]
[1750131179715,5.88595825,153.48,153.43,32.4905]
[1750131179923,27.02,153.47,153.44,5.88595825]
[1750131180730,27.02,153.47,153.45,5.88595825]
[1750131181748,39.42190244,153.47,153.43,31.88595825]
[1750131181947,5.88595825,153.46,153.41,5.88595825]
[1750131182245,5.88595825,153.46,153.39,6.0513]
[1750131182246,18.79181043,153.45,153.4,5.88595825]
[1750131182421,27.02,153.47,153.44,5.88595825]
[1750131182626,27.02,153.47,153.39,12.57058627]
[1750131182627,27.02,153.47,153.46,5.88595825]
[1750131182924,31.88143449,153.47,153.46,5.88595825]
[1750131183636,44.28345943,153.47,153.43,5.88595825]
[1750131183943,4.86143449,153.46,153.43,5.88595825]
[1750131184131,4.86143449,153.45,153.4,6.51879119]
[1750131184336,4.86143449,153.44,153.42,5.88595825]
[1750131184680,4.86143449,153.44,153.39,32.0513]
[1750131184681,4.86143449,153.43,153.41,5.88595825]
[1750131184831,27.02,153.44,153.41,5.88595825]
[1750131185032,4.86149196,153.43,153.41,5.88595825]
[1750131185229,27.02,153.44,153.42,5.88595825]
[1750131185538,27.02,153.44,153.41,6.51840687]
[1750131185728,27.02,153.44,153.43,5.88595825]
[1750131186842,31.87780788,153.44,153.43,5.88595825]
[1750131187022,27.02,153.44,153.43,5.88595825]
[1750131187436,31.87704223,153.44,153.42,5.88595825]
[1750131187629,4.85733752,153.43,153.42,5.88595825]
[1750131188039,4.85733752,153.43,153.41,5.88595825]
[1750131188214,33.53723636,153.44,153.41,5.88595825]
[1750131188420,4.85553706,153.43,153.39,37.93725825]
[1750131188638,45.36319461,153.44,153.39,11.93725825]
[1750131188639,4.85553706,153.42,153.39,11.93725825]
[1750131188836,4.85553706,153.42,153.36,87.82870342]
[1750131188837,6.02811982,153.43,153.36,94.34917646]
[1750131189043,32.90595825,153.41,153.36,66.08696167]
[1750131189247,39.42455392,153.41,153.36,66.08696167]
[1750131189429,27.02,153.41,153.39,5.88595825]
[1750131190345,27.02,153.41,153.4,5.88595825]
[1750131190544,27.02,153.41,153.39,5.88595825]
[1750131191422,27.02,153.41,153.4,5.88595825]
[1750131192235,27.02,153.41,153.38,5.88595825]
[1750131192440,6.02811982,153.4,153.36,60.20100342]
[1750131192643,6.02811982,153.4,153.33,5.88595825]
[1750131192644,5.88595825,153.37,153.33,5.88595825]
[1750131192843,27.02,153.36,153.33,5.88595825]
[1750131193046,6.02811982,153.35,153.31,5.88595825]
[1750131193548,12.54945452,153.35,153.31,5.88595825]
[1750131193844,5.88595825,153.34,153.3,6.5365]
[1750131194143,6.66349627,153.35,153.28,5.88595825]
[1750131194144,32.90595825,153.33,153.28,5.88595825]
[1750131194329,32.90595825,153.33,153.29,5.88595825]
[1750131194535,27.02,153.33,153.29,5.88595825]
[1750131194929,27.02,153.33,153.29,8.84855383]
[1750131195129,27.02,153.33,153.26,12.66693089]
[1750131195328,35.86855383,153.33,153.26,12.66693089]
[1750131195550,42.3905529,153.33,153.29,8.84855383]
[1750131195933,42.3905529,153.33,153.28,8.84855383]
[1750131197243,27.02,153.33,153.3,8.84855383]
[1750131197565,42.39047205,153.33,153.29,8.84855383]
[1750131198052,8.9907154,153.32,153.28,8.84855383]
[1750131198236,0.14216157,153.32,153.28,8.84855383]
[1750131198552,10.501654,153.4,153.31,8.84855383]
[1750131198725,5.94,153.38,153.37,8.84855383]
[1750131200833,12.45975485,153.38,153.35,8.84855383]
[1750131201033,26.1447546,153.38,153.34,8.84855383]
[1750131201544,0.14216157,153.37,153.32,1.544]
[1750131201756,8.9907154,153.37,153.33,8.84855383]
[1750131202256,8.9907154,153.37,153.31,8.84855383]
[1750131202257,8.9907154,153.35,153.31,8.84855383]
[1750131202433,0.14216157,153.35,153.31,8.84855383]
[1750131202754,8.9907154,153.35,153.31,8.84855383]
[1750131203352,6.52145558,153.34,153.31,8.84855383]
[1750131203534,6.66323579,153.35,153.32,8.84855383]
[1750131203736,27.04,153.36,153.34,8.84855383]
[1750131204031,14.78855383,153.38,153.29,12.7350655]
[1750131204032,5.94,153.38,153.35,8.84855383]
[1750131204236,5.94,153.38,153.36,8.84855383]
[1750131204237,32.98,153.38,153.36,8.84855383]
[1750131204737,39.49978877,153.38,153.36,8.84855383]
[1750131204946,39.49978877,153.38,153.29,12.7350655]
[1750131204947,8.9907154,153.37,153.29,12.7350655]
[1750131205142,8.9907154,153.37,153.33,8.84855383]
[1750131205541,6.52060511,153.36,153.33,8.84855383]
[1750131205756,15.36915894,153.36,153.32,8.84855383]
[1750131205963,27.04,153.35,153.32,8.84855383]
[1750131206669,35.88855383,153.35,153.31,8.84855383]
[1750131206871,27.04,153.35,153.31,8.84855383]
[1750131207564,27.04,153.35,153.32,8.84855383]
[1750131208158,6.52145558,153.34,153.29,32.2115]
[1750131208332,6.52145558,153.34,153.31,8.84855383]
[1750131208535,6.52145558,153.34,153.29,32.2115]
[1750131208868,6.52145558,153.34,153.31,8.84855383]
[1750131209959,6.52145558,153.34,153.3,8.84855383]
[1750131210158,8.9907154,153.33,153.28,8.84855383]
[1750131210364,27.04,153.32,153.28,8.84855383]
[1750131210565,27.04,153.32,153.25,12.90575108]
[1750131210566,27.04,153.32,153.31,8.84855383]
[1750131210736,27.04,153.34,153.31,8.84855383]
[1750131211044,33.56072029,153.36,153.33,8.84855383]
[1750131214642,27.04,153.36,153.27,42.31044999]
[1750131214847,27.04,153.36,153.33,8.84855383]
[1750131215072,27.04,153.35,153.33,8.84855383]
[1750131215972,33.56122876,153.35,153.33,8.84855383]
[1750131216842,27.04,153.35,153.33,8.84855383]
[1750131217449,27.04,153.35,153.34,8.84855383]
[1750131217845,12.45981429,153.38,153.34,8.84855383]
[1750131218145,27.04,153.37,153.33,8.84855383]
[1750131219169,27.04,153.37,153.34,8.84855383]
[1750131219475,27.04,153.37,153.35,8.84855383]
[1750131220351,33.56028656,153.37,153.35,8.84855383]
[1750131221454,27.04,153.37,153.35,8.84855383]
[1750131221771,5.94,153.38,153.36,8.84855383]
[1750131221976,32.98,153.38,153.36,8.84855383]
[1750131223383,5.94,153.38,153.36,8.84855383]
[1750131223549,32.98,153.38,153.36,8.84855383]
[1750131223746,18.79181043,153.42,153.37,8.84855383]
[1750131223966,5.94,153.41,153.4,8.84855383]
[1750131224168,32.98,153.41,153.4,8.84855383]
[1750131224355,5.94,153.41,153.4,8.84855383]
[1750131224766,5.94,153.41,153.39,8.84855383]
[1750131225176,12.45853286,153.41,153.39,8.84855383]
[1750131225377,12.45853286,153.41,153.38,8.84855383]
[1750131225552,12.45853286,153.41,153.39,8.84855383]
[1750131225758,39.49853286,153.41,153.36,1.5241]
[1750131225955,39.49853286,153.41,153.37,8.84855383]
[1750131226155,48.34708669,153.41,153.37,8.84855383]
[1750131226364,8.9907154,153.4,153.36,8.84855383]
[1750131226568,27.02,153.39,153.36,8.84855383]
[1750131227174,27.02,153.39,153.38,8.84855383]
[1750131228371,32.96,153.41,153.38,8.84855383]
[1750131228577,39.47857494,153.41,153.39,8.84855383]
[1750131229264,39.47857494,153.41,153.38,8.84855383]
[1750131230184,44.33557556,153.41,153.38,8.84855383]
[1750131230979,0.14216157,153.4,153.35,26.0]
[1750131231280,35.86855383,153.39,153.35,8.84855383]
[1750131231454,27.02,153.39,153.37,8.84855383]
[1750131231657,12.45857494,153.41,153.38,8.84855383]
[1750131231868,27.02,153.4,153.32,30.66001347]
[1750131232078,27.02,153.4,153.33,26.0]
[1750131232264,27.02,153.4,153.37,8.84855383]
[1750131232979,33.53902941,153.4,153.37,8.84855383]
[1750131233155,38.40403987,153.4,153.37,8.84855383]
[1750131233355,27.02,153.4,153.38,8.84855383]
[1750131233555,12.45863373,153.41,153.39,8.84855383]
[1750131233556,5.94,153.41,153.39,8.84855383]
[1750131233759,32.96,153.41,153.39,8.84855383]
[1750131234971,32.96,153.41,153.39,5.89127176]
[1750131235759,5.94,153.41,153.39,5.89127176]
[1750131237358,5.94,153.41,153.34,6.52145558]
[1750131237556,5.94,153.41,153.39,5.89127176]
[1750131237772,5.94,153.41,153.4,5.89127176]
[1750131237976,32.96,153.41,153.4,5.89127176]
[1750131238164,32.96,153.41,153.39,5.89127176]
[1750131239271,32.96,153.41,153.4,5.89127176]
[1750131240390,5.94,153.41,153.4,5.89127176]
[1750131240587,5.94,153.41,153.4,12.41017658]
[1750131241863,27.02,153.45,153.4,12.41017658]
[1750131242063,27.02,153.45,153.42,5.89127176]
[1750131242597,5.94,153.46,153.43,5.89127176]
[1750131242761,5.94,153.46,153.45,5.89127176]
[1750131243993,5.94,153.46,153.45,12.40805247]
[1750131244877,10.79654641,153.51,153.45,20.28705247]
[1750131245187,5.94,153.51,153.5,5.89127176]
[1750131249402,32.94,153.44,153.4,5.89127176]
[1750131249711,39.45726163,153.44,153.4,5.89127176]
[1750131250201,45.34853339,153.44,153.4,5.89127176]
[1750131250876,48.29360635,153.44,153.4,8.83634472]
[1750131251693,39.45726163,153.44,153.4,8.83634472]
[1750131251893,5.94,153.44,153.43,8.83634472]
[1750131252798,5.94,153.44,153.42,8.83634472]
[1750131253000,5.94,153.44,153.41,8.83634472]
[1750131253175,27.0,153.43,153.41,8.83634472]
[1750131258385,5.94,153.44,153.42,8.83634472]
[1750131258583,26.0,153.5,153.41,6.51835237]
[1750131258584,5.94,153.5,153.44,6.2492]
[1750131258778,32.94,153.5,153.49,8.83634472]
[1750131259176,32.94,153.5,153.44,6.2492]
[1750131259390,0.14216157,153.49,153.47,8.83634472]
[1750131260108,32.94,153.5,153.48,8.83634472]
[1750131260692,39.45476237,153.5,153.48,8.83634472]
[1750131261311,0.14216157,153.49,153.47,8.83634472]
[1750131261606,27.0,153.48,153.47,8.83634472]
[1750131261802,27.0,153.48,153.44,6.2492]
[1750131261803,27.0,153.48,153.46,8.83634472]
[1750131262005,27.0,153.48,153.45,8.83634472]
[1750131262984,33.51584584,153.48,153.45,8.83634472]
[1750131263202,0.14216157,153.47,153.45,8.83634472]
[1750131263514,27.0,153.46,153.42,8.83634472]
[1750131263704,27.0,153.46,153.43,8.83634472]
[1750131264606,33.51640282,153.46,153.43,8.83634472]
[1750131265808,27.62815515,153.45,153.41,8.83634472]
[1750131266012,27.0,153.44,153.41,8.83634472]
[1750131266524,42.35394743,153.44,153.4,8.83634472]
[1750131266700,14.77634472,153.43,153.39,8.83634472]
[1750131266886,35.83634472,153.42,153.36,6.0298]
[1750131267082,8.83634472,153.41,153.37,8.83634472]
[1750131267307,27.0,153.4,153.37,8.83634472]
[1750131269718,27.0,153.4,153.38,8.83634472]
[1750131270415,5.94,153.43,153.38,8.83634472]
[1750131270624,23.68419838,153.49,153.42,8.83634472]
[1750131270625,5.92,153.47,153.42,8.83634472]
[1750131270798,27.0,153.46,153.45,8.83634472]
[1750131270994,27.0,153.46,153.44,8.83634472]
[1750131271903,27.0,153.46,153.43,8.83634472]
[1750131272122,0.14216157,153.45,153.42,8.83634472]
[1750131272707,0.14216157,153.45,153.41,8.83634472]
[1750131272912,18.79181043,153.45,153.41,8.83634472]
[1750131273817,18.79181043,153.45,153.42,8.83634472]
[1750131274003,33.51643073,153.46,153.44,8.83634472]
[1750131274328,5.92,153.47,153.45,8.83634472]
[1750131274617,32.92,153.47,153.45,8.83634472]
[1750131275009,5.92,153.47,153.45,8.83634472]
[1750131275205,32.92,153.47,153.44,8.83634472]
[1750131275705,27.14216157,153.46,153.43,8.83634472]
[1750131276111,35.97850629,153.46,153.42,8.83634472]
[1750131277212,6.51678071,153.45,153.42,8.83634472]
[1750131278907,6.51678071,153.45,153.39,32.51922783]
[1750131279223,6.51678071,153.45,153.42,8.83634472]
[1750131280336,6.51678071,153.45,153.41,8.83634472]
[1750131280337,0.14216157,153.44,153.41,8.83634472]
[1750131280510,26.98,153.43,153.4,8.83634472]
[1750131282529,26.98,153.43,153.41,8.83634472]
[1750131283550,5.92,153.44,153.42,8.83634472]
[1750131283710,32.9,153.44,153.42,8.83634472]
[1750131283906,39.41724557,153.44,153.42,8.83634472]
[1750131284528,39.41724557,153.44,153.39,26.0]
[1750131284739,39.41724557,153.44,153.41,8.83634472]
[1750131284930,8.97850629,153.43,153.39,8.83634472]
[1750131285116,0.14216157,153.43,153.39,8.83634472]
[1750131285936,8.97850629,153.41,153.37,8.83634472]
[1750131286240,35.95850629,153.41,153.36,6.0298]
[1750131286412,35.95850629,153.41,153.37,8.83634472]
[1750131286614,27.12216157,153.41,153.37,8.83634472]
[1750131287240,27.12216157,153.41,153.36,14.86614472]
[1750131287617,6.51890482,153.4,153.37,8.83634472]
[1750131289033,33.64075541,153.41,153.38,8.83634472]
[1750131289237,5.92,153.44,153.37,6.52017995]
[1750131289539,12.43720542,153.44,153.42,8.83634472]
[1750131290115,39.41720542,153.44,153.42,8.83634472]
[1750131290621,32.9,153.44,153.42,8.83634472]
[1750131290825,39.41720542,153.44,153.43,8.83634472]
[1750131291024,39.41720542,153.44,153.37,6.52005742]
[1750131291223,44.28546243,153.44,153.41,8.83634472]
[1750131291941,8.97850629,153.43,153.39,8.83634472]
[1750131292126,0.14216157,153.43,153.39,8.83634472]
[1750131292328,5.01480924,153.43,153.39,8.83634472]
[1750131292644,6.51805501,153.42,153.36,38.55033716]
[1750131292943,6.51805501,153.42,153.39,8.83634472]
[1750131294454,6.51805501,153.42,153.4,8.83634472]
[1750131296049,6.51778123,153.43,153.41,8.83634472]
[1750131296250,12.43734975,153.44,153.42,8.83634472]
[1750131296553,4.87110124,153.47,153.43,8.83634472]
[1750131296727,31.85110124,153.48,153.45,8.83634472]
[1750131296928,4.87110124,153.47,153.44,8.83634472]
[1750131297545,6.51623184,153.47,153.46,8.83634472]
[1750131297747,6.51560403,153.48,153.46,8.83634472]
[1750131298055,28.89316358,153.49,153.47,8.83634472]
[1750131298254,51.00287168,153.49,153.47,8.83634472]
[1750131298430,17.50764552,153.49,153.48,8.83634472]
[1750131298629,17.50764552,153.49,153.42,12.55439611]
[1750131298825,28.89191859,153.49,153.46,8.83634472]
[1750131299330,26.98,153.48,153.46,8.83634472]
[1750131299757,33.49580953,153.48,153.45,8.83634472]
[1750131301657,33.49580953,153.48,153.46,8.83634472]
[1750131301859,44.48764552,153.49,153.47,8.83634472]
[1750131302669,44.48764552,153.49,153.48,8.83634472]
[1750131303642,17.50764552,153.49,153.48,8.83634472]
[1750131303846,11.58764552,153.49,153.48,22.98955162]
[1750131304049,26.98,153.53,153.48,22.98955162]
[1750131304251,10.78495636,153.54,153.52,8.83634472]
[1750131304252,12.43329511,153.54,153.52,8.83634472]
[1750131304452,44.27578193,153.54,153.52,8.83634472]
[1750131304634,39.41329511,153.54,153.52,8.83634472]
[1750131304838,0.14216157,153.53,153.48,7.6377]
[1750131305046,8.83634472,153.52,153.48,8.83634472]
[1750131305341,6.51465798,153.5,153.48,8.83634472]
[1750131305567,6.51465798,153.5,153.47,8.83634472]
[1750131305740,15.3510027,153.5,153.46,8.83634472]
[1750131305940,20.21388232,153.5,153.46,8.83634472]
[1750131306261,6.51465798,153.5,153.47,8.83634472]
[1750131306446,15.3510027,153.5,153.46,8.83634472]
[1750131306866,20.21445419,153.5,153.46,8.83634472]
[1750131307751,11.37810947,153.5,153.46,8.83634472]
[1750131308151,8.97850629,153.49,153.44,8.83634472]
[1750131308359,35.81634472,153.48,153.44,8.83634472]
[1750131308561,5.92,153.47,153.44,8.83634472]
[1750131308962,5.92,153.47,153.44,5.88818176]
[1750131309858,6.51635605,153.46,153.44,5.88818176]
[1750131311154,6.51635605,153.46,153.41,26.0]
[1750131311359,26.96,153.45,153.41,5.88818176]
[1750131312859,26.96,153.45,153.41,8.83507774]
[1750131313254,6.51720542,153.44,153.42,8.83507774]
[1750131313890,26.96,153.45,153.43,8.83507774]
[1750131314179,12.43296079,153.54,153.45,26.0]
[1750131314358,31.86192143,153.53,153.51,8.83507774]
[1750131314688,0.14216157,153.52,153.49,8.83507774]
[1750131315475,0.14216157,153.5,153.46,8.83507774]
[1750131315771,27.0,153.49,153.46,8.83507774]
[1750131316354,27.0,153.49,153.47,8.83507774]
[1750131316555,27.0,153.49,153.48,8.83507774]
[1750131316759,33.51508241,153.49,153.48,8.83507774]
[1750131317472,33.51508241,153.49,153.47,8.83507774]
[1750131320876,33.51508241,153.49,153.46,8.83507774]
[1750131321053,33.51508241,153.49,153.47,8.83507774]
[1750131321783,0.14216157,153.48,153.45,8.83507774]
[1750131321990,26.96,153.47,153.45,8.83507774]
[1750131322166,8.83507774,153.46,153.42,8.83507774]
[1750131322473,8.83507774,153.46,153.41,26.0]
[1750131322474,35.79507774,153.45,153.41,8.83507774]
[1750131322678,35.79507774,153.45,153.38,39.02211335]
[1750131322861,6.51720542,153.44,153.41,8.83507774]
[1750131323065,26.96,153.43,153.41,8.83507774]
[1750131326082,26.96,153.43,153.42,8.83507774]
[1750131326260,26.96,153.43,153.38,32.5025]
[1750131326261,26.96,153.43,153.41,8.83507774]
[1750131328758,26.96,153.43,153.42,8.83507774]
[1750131329387,33.47763018,153.43,153.38,32.5025]
[1750131329586,33.47763018,153.43,153.4,8.83507774]
[1750131329806,33.47763018,153.43,153.38,6.5025]
[1750131330095,42.31270792,153.43,153.39,8.83507774]
[1750131330389,33.47763018,153.43,153.4,8.83507774]
[1750131331407,26.96,153.43,153.41,8.83507774]
[1750131331704,5.92,153.45,153.42,8.83507774]
[1750131331906,5.92,153.45,153.44,8.83507774]
[1750131332908,5.92,153.45,153.39,6.51932981]
[1750131333088,26.98,153.44,153.41,8.83507774]
[1750131333285,26.98,153.44,153.38,39.02210466]
[1750131333481,26.98,153.44,153.41,8.83507774]
[1750131334106,33.49754897,153.44,153.41,8.83507774]
[1750131334913,5.89336178,153.42,153.37,5.89336178]
[1750131335099,5.89336178,153.42,153.38,5.89336178]
[1750131335100,26.98,153.41,153.38,5.89336178]
[1750131335412,32.87336178,153.41,153.36,33.22239388]
[1750131335707,32.87336178,153.41,153.37,5.89336178]
[1750131336108,6.51932981,153.39,153.36,39.11575566]
[1750131336311,26.98,153.38,153.36,39.11575566]
[1750131337098,26.98,153.38,153.37,5.89336178]
[1750131338506,26.98,153.38,153.36,33.22239388]
[1750131338681,26.98,153.38,153.37,5.89336178]
[1750131340414,8.02063941,153.44,153.37,5.89336178]
[1750131340596,26.98,153.43,153.41,5.89336178]
[1750131341095,5.92,153.44,153.42,5.89336178]
[1750131341298,11.97733333,153.49,153.42,5.89336178]
[1750131341299,4.86053203,153.49,153.44,6.6485]
[1750131341506,32.9,153.51,153.48,5.89336178]
[1750131341811,32.9,153.51,153.5,5.89336178]
[1750131341812,5.92,153.51,153.5,5.89336178]
[1750131343026,12.43433855,153.51,153.49,8.82577068]
[1750131343315,39.41433855,153.51,153.49,8.82577068]
[1750131343685,32.9,153.51,153.49,8.82577068]
[1750131343889,39.41429955,153.51,153.44,8.1663]
[1750131344118,39.41429955,153.51,153.48,8.82577068]
[1750131344695,8.82577068,153.5,153.44,6.6485]
[1750131344991,27.61758111,153.49,153.44,15.47427068]
[1750131345193,35.78577068,153.48,153.44,8.82577068]
[1750131345924,35.78577068,153.48,153.43,8.82577068]
[1750131346494,6.51593145,153.47,153.43,8.82577068]
[1750131346919,8.82577068,153.46,153.4,7.8968]
[1750131347198,26.96,153.45,153.41,8.82577068]
[1750131348511,6.51720542,153.44,153.42,8.82577068]
[1750131348897,6.51593145,153.47,153.43,8.82577068]
[1750131349095,26.96,153.46,153.43,8.82577068]
[1750131349315,26.96,153.45,153.43,8.82577068]
[1750131350325,33.4768407,153.45,153.44,8.82577068]
[1750131350516,33.4768407,153.45,153.43,8.82577068]
[1750131353122,33.4768407,153.45,153.42,8.82577068]
[1750131355631,33.4768407,153.45,153.43,8.82577068]
[1750131355932,26.96,153.45,153.44,8.82577068]
[1750131356414,5.92,153.46,153.44,8.82577068]
[1750131356616,5.92,153.51,153.45,17.65154136]
[1750131356940,5.92,153.51,153.5,8.82577068]
[1750131357145,32.88,153.51,153.5,8.82577068]
[1750131357821,5.92,153.51,153.5,8.82577068]
[1750131358015,32.88,153.51,153.5,8.82577068]
[1750131360611,39.3942336,153.51,153.5,8.82577068]
[1750131360817,48.22000428,153.51,153.43,6.3654]
[1750131361137,8.82577068,153.48,153.43,15.19117068]
[1750131361353,26.96,153.47,153.43,15.19117068]
[1750131361512,26.96,153.47,153.44,8.82577068]
[1750131361707,33.47602531,153.47,153.44,8.82577068]
[1750131361914,26.96,153.47,153.45,8.82577068]